bitfinex/quotes_BTCUSD_20250513
["timestamp","ask_amount","ask_price","bid_price","bid_amount"]
[1747148644119,0.24491996,103250.0,103240.0,1.05132324]
[1747148644941,0.01951479,103250.0,103240.0,1.06100875]
[1747148645386,0.00014556,103250.0,103240.0,1.15831815]
[1747148645585,0.01664556,103250.0,103240.0,1.49653039]
[1747148645787,0.00983003,103250.0,103240.0,1.15831815]
[1747148645998,0.00014556,103250.0,103240.0,1.52923039]
[1747148646634,0.00014556,103250.0,103240.0,1.51273039]
[1747148647052,0.00014556,103250.0,103240.0,1.36244039]
[1747148647258,0.00014556,103250.0,103240.0,4.31782839]
[1747148647601,0.00014556,103250.0,103240.0,4.35492073]
[1747148648028,0.00014556,103250.0,103240.0,4.32222073]
[1747148648275,0.00014556,103250.0,103240.0,4.33872073]
[1747148651037,0.00014556,103250.0,103240.0,3.66229625]
[1747148651243,0.00014556,103250.0,103240.0,3.79443849]
[1747148651458,0.00014556,103250.0,103240.0,4.13265073]
[1747148651878,0.00014556,103250.0,103240.0,4.14895073]
[1747148654802,0.0165,103260.0,103250.0,1.23914363]
[1747148655008,0.02656317,103260.0,103250.0,4.29188103]
[1747148655215,0.05274699,103260.0,103250.0,4.29188103]
[1747148655438,0.04306317,103260.0,103250.0,4.29793252]
[1747148655660,0.19373214,103280.0,103270.0,0.34]
[1747148655877,0.19373214,103280.0,103270.0,2.94385724]
[1747148656084,0.19373214,103280.0,103270.0,2.94990873]
[1747148656727,0.21301269,103280.0,103270.0,3.16294204]
[1747148656941,0.02904592,103280.0,103270.0,3.51083697]
[1747148657186,0.23437657,103280.0,103270.0,3.16294204]
[1747148657397,0.23437657,103280.0,103270.0,3.17262492]
[1747148657608,0.23237657,103280.0,103270.0,0.90697992]
[1747148657838,0.27087642,103300.0,103270.0,0.90697992]
[1747148657839,0.27087642,103300.0,103280.0,0.55301249]
[1747148658059,0.1937494,103300.0,103290.0,3.39875748]
[1747148658321,0.19389487,103300.0,103290.0,3.60811993]
[1747148658519,0.22659487,103300.0,103290.0,3.41935793]
[1747148658800,0.04252554,103300.0,103290.0,3.44840114]
[1747148659029,0.23247697,103300.0,103290.0,3.44840133]
[1747148659255,0.21311711,103300.0,103290.0,3.42903922]
[1747148659477,0.23493685,103300.0,103290.0,2.45558497]
[1747148660111,0.23693685,103300.0,103290.0,2.49577723]
[1747148660326,0.23693685,103300.0,103290.0,2.51042612]
[1747148660532,0.23493685,103300.0,103290.0,2.52010759]
[1747148660750,0.23493685,103300.0,103290.0,2.72341855]
[1747148660966,0.23593685,103300.0,103290.0,2.72341855]
[1747148661379,0.22625631,103300.0,103290.0,2.72341855]
[1747148661606,0.22625631,103300.0,103290.0,2.32090812]
[1747148661822,0.22625631,103300.0,103290.0,0.38624375]
[1747148662071,0.22625631,103300.0,103290.0,0.04624375]
[1747148662286,0.22625631,103300.0,103290.0,0.38445599]
[1747148663615,0.36646187,103300.0,103290.0,0.04624375]
[1747148663839,0.36646187,103300.0,103290.0,0.04019226]
[1747148664070,0.32356571,103300.0,103290.0,0.04019226]
[1747148664314,0.23481087,103290.0,103280.0,0.33821224]
[1747148664742,0.23481087,103290.0,103280.0,0.34426306]
[1747148664959,0.23485087,103290.0,103280.0,0.34426306]
[1747148665400,0.23485087,103290.0,103280.0,0.34430306]
[1747148667880,0.23485087,103290.0,103280.0,0.00609082]
[1747148668122,0.33216027,103290.0,103280.0,0.00609082]
[1747148668569,0.33216027,103290.0,103280.0,0.04444764]
[1747148668760,0.33216027,103290.0,103280.0,4e-05]
[1747148669212,0.34119279,103290.0,103280.0,4e-05]
[1747148670609,0.34319279,103290.0,103280.0,4e-05]
[1747148676174,0.24588339,103290.0,103280.0,0.33825224]
[1747148676401,0.24588339,103290.0,103280.0,0.34430319]
[1747148676953,0.24588339,103290.0,103280.0,0.00609095]
[1747148677392,0.24588339,103290.0,103280.0,0.34430319]
[1747148677610,0.22968339,103290.0,103280.0,0.34430319]
[1747148678050,0.22406458,103290.0,103280.0,0.88763393]
[1747148678278,0.22406458,103290.0,103280.0,2.47966525]
[1747148678491,0.22406458,103290.0,103280.0,2.46998293]
[1747148678703,0.22406458,103290.0,103280.0,2.2763346]
[1747148678917,0.02075343,103290.0,103280.0,2.85314129]
[1747148679135,0.02140154,103290.0,103280.0,2.95045069]
[1747148679362,0.03108264,103290.0,103280.0,2.95045069]
[1747148680011,0.04076393,103290.0,103280.0,2.95045069]
[1747148680423,0.02908264,103290.0,103280.0,2.95045069]
[1747148680625,0.03876383,103290.0,103280.0,2.95045069]
[1747148681273,0.03876383,103290.0,103280.0,2.61223845]
[1747148681877,0.04844512,103290.0,103280.0,2.61223845]
[1747148682083,0.24207545,103290.0,103280.0,2.61223854]
[1747148682325,0.04844587,103290.0,103280.0,2.6219203]
[1747148682945,0.0290832,103290.0,103280.0,2.6219203]
[1747148683355,0.03876449,103290.0,103280.0,2.6219203]
[1747148684406,0.24207554,103290.0,103280.0,2.61223863]
[1747148684866,0.03876449,103290.0,103280.0,2.62192039]
[1747148685418,0.04844587,103290.0,103280.0,2.62192039]
[1747148685614,0.24207545,103290.0,103280.0,2.61223863]
[1747148685842,0.22271344,103290.0,103280.0,2.26665219]
[1747148686078,0.20335096,103290.0,103280.0,1.00746719]
[1747148686236,0.20335096,103290.0,103280.0,1.21079793]
[1747148686418,0.20335096,103290.0,103280.0,1.20111552]
[1747148686419,0.19366958,103290.0,103280.0,1.20111552]
[1747148686613,0.19366958,103290.0,103280.0,1.00746719]
[1747148687455,0.22396958,103290.0,103280.0,0.00609095]
[1747148688032,0.22396958,103290.0,103280.0,0.34609095]
[1747148688275,0.22396958,103290.0,103280.0,0.00609095]
[1747148688475,0.22396958,103290.0,103280.0,0.34609095]
[1747148688728,0.22396958,103290.0,103280.0,0.68430319]
[1747148690508,0.20886958,103290.0,103280.0,0.68430319]
[1747148692618,0.19366958,103290.0,103280.0,0.68430319]
[1747148695333,0.20946958,103290.0,103280.0,0.68430319]
[1747148695532,0.19366958,103290.0,103280.0,0.68430319]
[1747148695759,0.19366958,103290.0,103280.0,0.87795152]
[1747148695962,0.21303224,103290.0,103280.0,2.08396793]
[1747148696193,0.20335105,103290.0,103280.0,1.86423719]
[1747148698395,0.20335105,103290.0,103280.0,1.52602495]
[1747148698606,0.20335105,103290.0,103280.0,1.86423719]
[1747148699308,0.23565105,103290.0,103280.0,1.52602495]
[1747148699478,0.23565105,103290.0,103280.0,0.34609095]
[1747148701313,0.24470174,103290.0,103280.0,0.68430319]
[1747148701725,0.24570174,103290.0,103280.0,0.34609095]
[1747148701937,0.23665105,103290.0,103280.0,0.34609095]
[1747148702151,0.37700119,103290.0,103280.0,0.00609095]
[1747148703030,0.37700119,103290.0,103280.0,4e-05]
[1747148703273,0.33396045,103290.0,103280.0,4e-05]
[1747148703513,0.23665105,103290.0,103280.0,0.67825224]
[1747148703878,0.24570368,103290.0,103280.0,0.67825224]
[1747148704037,0.24570368,103290.0,103280.0,0.68430296]
[1747148704893,0.22990368,103290.0,103280.0,0.68430296]
[1747148705255,0.22990368,103290.0,103280.0,1.47527596]
[1747148705543,0.22371297,103290.0,103280.0,1.68482429]
[1747148705929,0.22371297,103290.0,103280.0,1.16453129]
[1747148705930,0.21403206,103290.0,103280.0,1.16453129]
[1747148706126,0.20435087,103290.0,103280.0,0.97088296]
[1747148706526,0.23675087,103290.0,103280.0,0.34609072]
[1747148708206,0.24580641,103290.0,103280.0,0.34609072]
[1747148708594,0.34311581,103290.0,103280.0,0.34609072]
[1747148710788,0.68132805,103290.0,103280.0,0.00609072]
[1747148711014,0.6958689,103290.0,103280.0,0.00609072]
[1747148711255,0.6958689,103290.0,103280.0,4e-05]
[1747148711256,1.0458689,103290.0,103280.0,4e-05]
[1747148711473,1.07015216,103290.0,103280.0,4e-05]
[1747148711685,1.20119333,103290.0,103280.0,4e-05]
[1747148712196,1.20019333,103290.0,103280.0,4e-05]
[1747148712913,1.20219333,103290.0,103280.0,4e-05]
[1747148713352,1.54040557,103290.0,103280.0,4e-05]
[1747148713812,1.53044557,103290.0,103280.0,4e-05]
[1747148714027,1.52044557,103290.0,103280.0,4e-05]
[1747148714463,1.18223333,103290.0,103280.0,4e-05]
[1747148714920,0.20340952,103240.0,103230.0,0.88725319]
[1747148715139,0.2130554,103240.0,103230.0,3.74871119]
[1747148715320,0.2130954,103240.0,103230.0,3.75476455]
[1747148715827,0.20340952,103240.0,103230.0,3.67109155]
[1747148716093,0.20340952,103240.0,103230.0,1.3105706]
[1747148716314,0.20340952,103240.0,103230.0,0.34653846]
[1747148716521,0.20340952,103240.0,103230.0,0.91551266]
[1747148716732,0.20340952,103240.0,103230.0,2.11188766]
[1747148716931,0.20340952,103240.0,103230.0,1.91814554]
[1747148717056,0.20340952,103240.0,103230.0,2.11388766]
[1747148717675,0.20340952,103240.0,103230.0,2.12978766]
[1747148718137,0.20340952,103240.0,103230.0,1.92014554]
[1747148718337,0.20340952,103240.0,103230.0,0.3855583]
[1747148718547,0.33221892,103240.0,103230.0,0.0455583]
[1747148718774,0.33221892,103240.0,103230.0,0.03950494]
[1747148719605,0.33221892,103240.0,103230.0,0.03650494]
[1747148720026,0.33321892,103240.0,103230.0,0.03450494]
[1747148720228,0.33321892,103240.0,103230.0,0.03650494]
[1747148720823,0.33321892,103240.0,103230.0,0.03450494]
[1747148721058,0.33421892,103240.0,103230.0,0.03450494]
[1747148721838,0.20540952,103240.0,103230.0,0.37271718]
[1747148722040,0.20540952,103240.0,103230.0,0.9064593]
[1747148722226,0.20540952,103240.0,103230.0,1.0461593]
[1747148722428,0.2150954,103240.0,103230.0,1.40057154]
[1747148722627,0.2150954,103240.0,103230.0,1.07809971]
[1747148722864,0.2150954,103240.0,103230.0,1.06841261]
[1747148725107,0.2150954,103240.0,103230.0,1.06845261]
[1747148726125,0.2150954,103240.0,103230.0,1.05225261]
[1747148727132,0.2150954,103240.0,103230.0,1.04158561]
[1747148727736,0.2150954,103240.0,103230.0,1.02538561]
[1747148728816,0.2150954,103240.0,103230.0,0.83164349]
[1747148729036,0.2150954,103240.0,103230.0,0.68754437]
[1747148729469,0.2150954,103240.0,103230.0,0.38059825]
[1747148730104,0.2460954,103240.0,103230.0,0.38059825]
[1747148730318,0.2460954,103240.0,103230.0,0.04059825]
[1747148730570,0.3434048,103240.0,103230.0,0.03454494]
[1747148731022,0.43093696,103240.0,103230.0,0.03454494]
[1747148731241,0.3434048,103240.0,103230.0,0.03454494]
[1747148731458,0.3434048,103240.0,103230.0,0.04616706]
[1747148732163,0.3282048,103240.0,103230.0,0.04616706]
[1747148732612,0.2150954,103240.0,103230.0,0.3843793]
[1747148733787,0.2150954,103240.0,103230.0,0.39043295]
[1747148734220,0.2150954,103240.0,103230.0,0.74583295]
[1747148734453,0.2150954,103240.0,103230.0,3.26637617]
[1747148734690,0.2150954,103240.0,103230.0,3.24721117]
[1747148734909,0.20540952,103240.0,103230.0,3.01731934]
[1747148735357,0.20540952,103240.0,103230.0,3.57721028]
[1747148735358,0.00204,103240.0,103230.0,3.57721028]
[1747148735573,0.02141092,103240.0,103230.0,3.57721028]
[1747148735808,0.03109671,103240.0,103230.0,3.57721028]
[1747148736051,0.04078259,103240.0,103230.0,3.57721028]
[1747148736263,0.03978259,103240.0,103230.0,3.57721028]
[1747148736477,0.03878259,103240.0,103230.0,3.57721028]
[1747148736688,0.03878259,103240.0,103230.0,3.57921028]
[1747148736924,0.02909671,103240.0,103230.0,3.58121028]
[1747148737546,0.02909671,103240.0,103230.0,3.57152384]
[1747148737770,0.22282073,103240.0,103230.0,2.7237215]
[1747148737990,0.03878344,103240.0,103230.0,2.73340804]
[1747148738450,0.2325068,103240.0,103230.0,2.0589841]
[1747148738686,0.21313541,103240.0,103230.0,0.5478251]
[1747148738906,0.24423541,103240.0,103230.0,0.3976581]
[1747148739564,0.24423541,103240.0,103230.0,0.3956581]
[1747148739862,0.24523541,103240.0,103230.0,0.3956581]
[1747148740066,0.24523541,103240.0,103230.0,0.3936581]
[1747148740287,0.24623541,103240.0,103230.0,0.3936581]
[1747148740930,0.34354481,103240.0,103230.0,0.3936581]
[1747148741151,0.34354481,103240.0,103230.0,0.0536581]
[1747148741589,0.35258625,103240.0,103230.0,0.0536581]
[1747148742024,0.20342922,103230.0,103220.0,0.53197309]
[1747148742246,0.21315557,103230.0,103220.0,0.57718183]
[1747148742449,0.21315557,103230.0,103220.0,2.05481885]
[1747148742873,0.0194128,103230.0,103220.0,2.06450623]
[1747148743085,0.04847335,103230.0,103220.0,2.06450623]
[1747148743315,0.04847419,103230.0,103220.0,2.05481885]
[1747148743566,0.01941317,103230.0,103220.0,2.06450623]
[1747148743792,0.02909999,103230.0,103220.0,2.12155037]
[1747148744019,0.01941317,103230.0,103220.0,2.12155037]
[1747148744248,0.02909999,103230.0,103220.0,2.46155037]
[1747148744697,0.01941317,103230.0,103220.0,2.46155037]
[1747148744928,0.0194128,103230.0,103220.0,2.46155037]
[1747148745153,0.02909953,103230.0,103220.0,2.46155037]
[1747148745618,4e-05,103230.0,103220.0,2.46155037]
[1747148746355,0.00972626,103230.0,103220.0,2.46155037]
[1747148747933,4e-05,103230.0,103220.0,2.55885977]
[1747148748422,0.00904956,103250.0,103240.0,0.23828073]
[1747148748693,0.00904956,103250.0,103240.0,3.98479037]
[1747148748954,0.00904956,103250.0,103240.0,3.98664394]
[1747148749899,0.00904956,103250.0,103240.0,3.99693516]
[1747148750353,0.01936539,103270.0,103260.0,0.54337003]
[1747148750586,0.01936182,103290.0,103270.0,0.21303312]
[1747148750826,0.32560179,103290.0,103270.0,0.54156248]
[1747148751063,0.33464503,103290.0,103280.0,0.19546635]
[1747148751307,0.34036384,103290.0,103280.0,0.19546635]
[1747148751538,0.34041235,103290.0,103280.0,0.19546635]
[1747148752004,0.36901573,103290.0,103280.0,0.19546635]
[1747148752201,0.34041235,103290.0,103280.0,0.19546635]
[1747148752326,0.34045235,103290.0,103280.0,0.19550635]
[1747148752529,0.34045235,103290.0,103280.0,0.23460896]
[1747148752759,0.00913175,103290.0,103280.0,0.94186732]
[1747148753002,0.00913175,103290.0,103280.0,1.94653432]
[1747148753224,0.00913175,103290.0,103280.0,1.96263432]
[1747148753447,0.00208851,103290.0,103280.0,2.31545905]
[1747148753679,0.00208851,103290.0,103280.0,1.97724681]
[1747148753960,8.851e-05,103290.0,103280.0,1.97724681]
[1747148754653,8.851e-05,103290.0,103280.0,3.94456781]
[1747148754880,8.851e-05,103290.0,103280.0,4.38008945]
[1747148755768,0.03507361,103320.0,103310.0,0.34]
[1747148755996,0.06415688,103320.0,103310.0,0.67821224]
[1747148756206,0.22869631,103320.0,103310.0,0.68000876]
[1747148756421,0.015766,103320.0,103310.0,0.90263854]
[1747148756655,0.015766,103320.0,103310.0,2.15247518]
[1747148757112,1e-08,103320.0,103310.0,2.16701603]
[1747148757352,1e-08,103320.0,103310.0,1.38560103]
[1747148757816,1e-08,103320.0,103310.0,1.04738879]
[1747148758128,1e-08,103320.0,103310.0,1.04838879]
[1747148758575,0.00967792,103320.0,103310.0,1.03284794]
[1747148758793,0.01935593,103320.0,103310.0,1.01624794]
[1747148759052,0.01935593,103320.0,103310.0,3.97163594]
[1747148759271,0.02903412,103320.0,103310.0,3.97163594]
[1747148759492,0.02903412,103320.0,103310.0,3.97363594]
[1747148759720,0.02903412,103320.0,103310.0,3.51443994]
[1747148759947,0.0387125,103320.0,103310.0,2.69284952]
[1747148760163,0.0387125,103320.0,103310.0,2.68984952]
[1747148760371,0.02903412,103320.0,103310.0,2.68984952]
[1747148760580,0.02903412,103320.0,103310.0,2.69084952]
[1747148760807,0.0387126,103320.0,103310.0,2.69084952]
[1747148761030,0.2226087,103320.0,103310.0,1.0480394]
[1747148761240,0.01935611,103320.0,103310.0,1.05771834]
[1747148761497,0.02903459,103320.0,103310.0,1.05771834]
[1747148761721,0.22260861,103320.0,103310.0,1.03836055]
[1747148761942,0.22260861,103320.0,103310.0,1.057719]
[1747148762376,0.22260861,103320.0,103310.0,1.057759]
[1747148762590,0.23232727,103320.0,103310.0,1.057759]
[1747148762819,0.2129706,103320.0,103310.0,0.3528191]
[1747148763041,0.2129706,103320.0,103310.0,0.6432501]
[1747148763281,0.2129706,103320.0,103310.0,0.98146234]
[1747148763523,0.2283706,103320.0,103310.0,0.0108191]
[1747148763757,0.34168,103320.0,103310.0,0.0108191]
[1747148763976,0.34168,103320.0,103310.0,0.0118191]
[1747148764402,0.34168,103320.0,103310.0,0.0098191]
[1747148764618,0.2443706,103320.0,103310.0,0.34803134]
[1747148764839,0.2129706,103320.0,103310.0,0.34803134]
[1747148765058,0.2129706,103320.0,103310.0,0.68803134]
[1747148765329,0.2129706,103320.0,103310.0,0.90098218]
[1747148765561,4.001e-05,103320.0,103310.0,1.83698236]
[1747148765786,4.001e-05,103320.0,103310.0,1.85634072]
[1747148766019,0.23232596,103320.0,103310.0,1.86601966]
[1747148766260,0.2323268,103320.0,103310.0,1.51812848]
[1747148766477,0.0193963,103320.0,103310.0,1.86601966]
[1747148766698,0.23232652,103320.0,103310.0,1.85634072]
[1747148766992,0.24200509,103320.0,103310.0,1.82730295]
[1747148767221,0.2236488,103320.0,103310.0,0.89130304]
[1747148767427,0.2236488,103320.0,103310.0,0.90098255]
[1747148767820,0.2236488,103320.0,103310.0,0.91066196]
[1747148768043,0.2236488,103320.0,103310.0,0.92034128]
[1747148768260,0.02039649,103320.0,103310.0,2.08195285]
[1747148768476,0.03007422,103320.0,103310.0,2.08195285]
[1747148768687,0.2236487,103320.0,103310.0,2.06259468]
[1747148768902,0.21297041,103320.0,103310.0,0.3498191]
[1747148769183,0.22957041,103320.0,103310.0,0.3498191]
[1747148769848,0.24467041,103320.0,103310.0,0.3498191]
[1747148770512,0.34197981,103320.0,103310.0,0.0098191]
[1747148770725,0.68019205,103320.0,103310.0,0.0098191]
[1747148770932,0.34197981,103320.0,103310.0,0.0098191]
[1747148771164,0.35095897,103320.0,103310.0,0.0098191]
[1747148773069,0.35195897,103320.0,103310.0,0.0098191]
[1747148773722,0.33685897,103320.0,103310.0,0.34803134]
[1747148773942,0.22294957,103320.0,103310.0,0.0098191]
[1747148774197,0.22294957,103320.0,103310.0,0.34803134]
[1747148774605,0.23874957,103320.0,103310.0,0.0098191]
[1747148774818,0.25534957,103320.0,103310.0,0.0098191]
[1747148775714,0.23874957,103320.0,103310.0,0.0098191]
[1747148776167,0.22294957,103320.0,103310.0,0.34803134]
[1747148777926,0.22294957,103320.0,103310.0,0.0098191]
[1747148778175,0.25524957,103320.0,103310.0,0.0098191]
[1747148778602,0.23944957,103320.0,103310.0,0.0098191]
[1747148779076,0.22294957,103320.0,103310.0,0.34803134]
[1747148781756,0.22294957,103320.0,103310.0,0.88162344]
[1747148782000,0.01001917,103320.0,103310.0,1.02352149]
[1747148782229,0.01001917,103320.0,103310.0,1.40231267]
[1747148782440,0.01001917,103320.0,103310.0,1.49962207]
[1747148782666,0.03007422,103320.0,103310.0,1.16140983]
[1747148782888,0.02907422,103320.0,103310.0,1.16140983]
[1747148783110,0.23232606,103320.0,103310.0,1.16140983]
[1747148783332,0.21297014,103320.0,103310.0,0.80089134]
[1747148783547,0.21297014,103320.0,103310.0,0.0098191]
[1747148783992,0.21297014,103320.0,103310.0,0.3498191]
[1747148784183,0.21297014,103320.0,103310.0,0.68803134]
[1747148784647,0.22201017,103320.0,103310.0,0.69003134]
[1747148785021,0.22201017,103320.0,103310.0,0.68803134]
[1747148785331,0.22201017,103320.0,103310.0,0.3498191]
[1747148785527,0.25461017,103320.0,103310.0,0.3498191]
[1747148788019,0.25561017,103320.0,103310.0,0.3498191]
[1747148788474,0.35291957,103320.0,103310.0,0.3498191]
[1747148790477,0.22301017,103320.0,103310.0,0.88162344]
[1747148790706,0.03911472,103320.0,103310.0,3.04110612]
[1747148790943,0.01008004,103320.0,103310.0,3.39481836]
[1747148791165,0.02943624,103320.0,103310.0,3.05660612]
[1747148791386,0.03911462,103320.0,103310.0,3.05660612]
[1747148791626,0.01008004,103320.0,103310.0,3.39481836]
[1747148791859,0.00104001,103320.0,103310.0,3.49212776]
[1747148792132,4.001e-05,103320.0,103310.0,3.49212776]
[1747148793012,0.00967604,103340.0,103330.0,0.56258668]
[1747148793234,0.03870519,103340.0,103330.0,3.87274692]
[1747148793465,0.03919014,103340.0,103330.0,3.89624982]
[1747148793694,0.00048504,103340.0,103330.0,3.87700582]
[1747148793929,0.01016108,103340.0,103330.0,3.87700582]
[1747148794180,0.0198374,103340.0,103330.0,3.87700582]
[1747148794400,0.00048504,103340.0,103330.0,3.87700582]
[1747148794621,0.01016099,103340.0,103330.0,3.97431522]
[1747148795276,0.01016099,103340.0,103330.0,1.03817122]
[1747148795481,0.01983712,103340.0,103330.0,3.99355922]
[1747148796176,0.01016099,103340.0,103330.0,3.99355922]
[1747148796397,0.01983712,103340.0,103330.0,3.99355922]
[1747148796614,0.01016099,103340.0,103330.0,3.99355922]
[1747148797081,0.00048504,103340.0,103330.0,3.99355922]
[1747148797316,0.01983712,103340.0,103330.0,3.99355922]
[1747148797744,0.01016099,103340.0,103330.0,3.99355922]
[1747148797974,0.01016099,103340.0,103330.0,3.34156421]
[1747148797975,0.23272614,103340.0,103330.0,3.34156421]
[1747148798201,0.02951354,103340.0,103330.0,2.63277921]
[1747148798636,0.03919014,103340.0,103330.0,2.63277921]
[1747148798869,0.02951354,103340.0,103330.0,2.63277921]
[1747148799090,0.03919014,103340.0,103330.0,2.47930582]
[1747148799516,0.03919014,103340.0,103330.0,2.46966875]
[1747148799807,0.21337433,103340.0,103330.0,1.09795114]
[1747148800246,0.21337433,103340.0,103330.0,0.75795114]
[1747148800478,0.21337433,103340.0,103330.0,0.87687414]
[1747148801139,0.21337433,103340.0,103330.0,1.07042877]
[1747148801359,0.21337433,103340.0,103330.0,1.0801065]
[1747148801580,0.21337433,103340.0,103330.0,1.08978404]
[1747148801800,0.21337433,103340.0,103330.0,1.22224805]
[1747148802065,0.01016136,103340.0,103330.0,1.22224805]
[1747148802285,0.029514,103340.0,103330.0,1.24812512]
[1747148802745,0.00048504,103340.0,103330.0,1.24812512]
[1747148803068,0.00052504,103340.0,103330.0,1.24812512]
[1747148804178,0.00052504,103340.0,103330.0,1.58633736]
[1747148804378,0.00052504,103340.0,103330.0,1.24812512]
[1747148805229,0.00052504,103340.0,103330.0,1.60087821]
[1747148805449,0.2128285,103370.0,103360.0,0.88138561]
[1747148805695,0.21297395,103370.0,103360.0,0.88142561]
[1747148805898,0.21297395,103370.0,103360.0,0.88935491]
[1747148806138,0.20330034,103370.0,103360.0,0.68618164]
[1747148806367,0.20330034,103370.0,103360.0,0.87968009]
[1747148806589,0.20330034,103370.0,103360.0,0.68618164]
[1747148807887,0.21960034,103370.0,103360.0,0.68618164]
[1747148808109,0.21960034,103370.0,103360.0,0.72622657]
[1747148808750,0.22060034,103370.0,103360.0,0.72622657]
[1747148808988,0.20430034,103370.0,103360.0,0.72622657]
[1747148809218,0.20430034,103370.0,103360.0,0.92939994]
[1747148809458,0.20430034,103370.0,103360.0,0.93907467]
[1747148809653,0.20430034,103370.0,103360.0,0.94874931]
[1747148810170,0.20430034,103370.0,103360.0,0.93907467]
[1747148811062,0.20430034,103370.0,103360.0,0.94874931]
[1747148811490,0.20430034,103370.0,103360.0,0.93907467]
[1747148811672,0.20430034,103370.0,103360.0,0.92939994]
[1747148811932,0.19462645,103370.0,103360.0,0.92939994]
[1747148812616,0.19462645,103370.0,103360.0,0.93907476]
[1747148813288,0.19466645,103370.0,103360.0,0.92939994]
[1747148813513,0.19466645,103370.0,103360.0,0.72622657]
[1747148814322,0.19466645,103370.0,103360.0,0.91972502]
[1747148814567,0.19466645,103370.0,103360.0,0.93907476]
[1747148815169,0.19466645,103370.0,103360.0,0.72622657]
[1747148815343,0.19466645,103370.0,103360.0,0.92939994]
[1747148815940,0.19466645,103370.0,103360.0,0.5911877]
[1747148816144,0.19466645,103370.0,103360.0,0.92939994]
[1747148816320,0.19466645,103370.0,103360.0,0.93907458]
[1747148816945,0.19466645,103370.0,103360.0,0.94874912]
[1747148817156,0.20434034,103370.0,103360.0,0.94874912]
[1747148817377,0.21401395,103370.0,103360.0,2.72963612]
[1747148817803,0.22368601,103370.0,103360.0,2.73931038]
[1747148818027,0.22368601,103370.0,103360.0,2.75491038]
[1747148818247,0.22368601,103370.0,103360.0,2.74523612]
[1747148818483,0.22368601,103370.0,103360.0,2.72963612]
[1747148818990,0.21401268,103370.0,103360.0,2.71996167]
[1747148819217,0.21401268,103370.0,103360.0,2.72963631]
[1747148819442,0.01085878,103370.0,103360.0,2.72963631]
[1747148819690,0.00118545,103370.0,103360.0,2.86139451]
[1747148819937,0.02053239,103370.0,103360.0,2.87779451]
[1747148820593,0.01085878,103370.0,103360.0,2.87779451]
[1747148820816,0.0302059,103370.0,103360.0,2.87779451]
[1747148821019,0.23335952,103370.0,103360.0,2.85172025]
[1747148821240,0.23335942,103370.0,103360.0,2.85776561]
[1747148821465,0.03020636,103370.0,103360.0,2.38166206]
[1747148821676,0.23335998,103370.0,103360.0,2.38166234]
[1747148821894,0.23336054,103370.0,103360.0,2.39686234]
[1747148822345,0.22368684,103370.0,103360.0,2.3871877]
[1747148822582,0.21401305,103370.0,103360.0,2.39686243]
[1747148822859,0.21401305,103370.0,103360.0,2.38166243]
[1747148823069,0.21401305,103370.0,103360.0,1.80178607]
[1747148823281,0.21401305,103370.0,103360.0,1.79211143]
[1747148823507,0.20433916,103370.0,103360.0,0.39405969]
[1747148823730,0.23653916,103370.0,103360.0,0.39405969]
[1747148823955,0.23653916,103370.0,103360.0,0.73227193]
[1747148824657,0.00118545,103370.0,103360.0,0.92577038]
[1747148824876,0.03020628,103370.0,103360.0,1.58529974]
[1747148825096,0.00118545,103370.0,103360.0,1.594974]
[1747148825336,0.02053229,103370.0,103360.0,1.611574]
[1747148825561,0.03020599,103370.0,103360.0,1.611574]
[1747148825998,0.01085859,103370.0,103360.0,1.611574]
[1747148826222,0.03020553,103370.0,103360.0,1.611574]
[1747148826865,0.0495534,103370.0,103360.0,1.61157419]
[1747148827284,0.0495534,103370.0,103360.0,1.62124855]
[1747148828127,0.03020553,103370.0,103360.0,1.63092281]
[1747148828353,0.03987942,103370.0,103360.0,1.62124855]
[1747148829038,0.22368601,103370.0,103360.0,0.90597269]
[1747148829290,0.23051268,103370.0,103360.0,1.06337393]
[1747148830504,0.23051268,103370.0,103360.0,1.2665473]
[1747148830505,0.20433907,103370.0,103360.0,1.2665473]
[1747148830734,0.20433907,103370.0,103360.0,1.25687238]
[1747148830971,0.20433907,103370.0,103360.0,0.92577038]
[1747148831218,0.20433907,103370.0,103360.0,1.71279138]
[1747148831634,0.20433907,103370.0,103360.0,1.69563338]
[1747148831886,0.20433907,103370.0,103360.0,1.65183338]
[1747148832461,0.23553907,103370.0,103360.0,1.12012269]
[1747148832685,0.23553907,103370.0,103360.0,0.39405969]
[1747148832686,0.22586518,103370.0,103360.0,0.39405969]
[1747148833173,0.22586518,103370.0,103360.0,0.73227193]
[1747148833409,0.23492345,103370.0,103360.0,0.73227193]
[1747148834063,0.23492345,103370.0,103360.0,0.39405969]
[1747148837780,0.23492345,103370.0,103360.0,0.73227193]
[1747148838007,0.01024372,103370.0,103360.0,0.94511994]
[1747148838278,0.01024372,103370.0,103360.0,2.73243874]
[1747148838506,0.01024372,103370.0,103360.0,2.74813874]
[1747148838507,0.01991695,103370.0,103360.0,2.74813874]
[1747148838723,0.02959046,103370.0,103360.0,2.74813874]
[1747148838954,0.02053219,103370.0,103360.0,2.73846448]
[1747148839184,0.03020589,103370.0,103360.0,2.7578131]
[1747148839609,0.03020589,103370.0,103360.0,2.4178131]
[1747148839776,0.02053219,103370.0,103360.0,2.4178131]
[1747148840002,0.03020589,103370.0,103360.0,2.4178131]
[1747148840202,0.02053219,103370.0,103360.0,2.4178131]
[1747148840374,0.03020589,103370.0,103360.0,2.40813884]
[1747148840966,0.03020589,103370.0,103360.0,2.40813893]
[1747148841373,0.03020589,103370.0,103360.0,2.41781329]
[1747148841805,0.03020589,103370.0,103360.0,2.40813893]
[1747148842847,0.03020589,103370.0,103360.0,2.41781329]
[1747148843060,0.03020589,103370.0,103360.0,2.40813893]
[1747148843201,0.03020589,103370.0,103360.0,2.41781329]
[1747148843616,0.03020589,103370.0,103360.0,2.40813893]
[1747148843833,0.00118545,103370.0,103360.0,2.75781263]
[1747148844051,0.02053201,103370.0,103360.0,2.77331263]
[1747148845148,0.02053192,103370.0,103360.0,2.87062203]
[1747148845356,0.03020543,103370.0,103360.0,2.87062203]
[1747148845573,0.02053192,103370.0,103360.0,2.87062203]
[1747148845848,0.03020534,103370.0,103360.0,2.87062203]
[1747148846078,6e-05,103380.0,103370.0,0.57816056]
[1747148846299,6e-05,103380.0,103370.0,4.20997304]
[1747148846511,0.0097322,103380.0,103370.0,2.93420353]
[1747148846725,0.0097323,103380.0,103370.0,3.27241577]
[1747148846949,0.01940478,103380.0,103370.0,2.93420353]
[1747148847791,0.22253893,103380.0,103370.0,2.8733227]
[1747148848017,0.23813893,103380.0,103370.0,1.42066268]
[1747148848221,0.23813893,103380.0,103370.0,1.43033657]
[1747148848420,0.22253893,103380.0,103370.0,1.43033657]
[1747148848632,0.02907792,103380.0,103370.0,1.43033657]
[1747148849125,0.03875097,103380.0,103370.0,1.44001036]
[1747148849318,0.03875097,103380.0,103370.0,1.43033657]
[1747148849477,0.23221198,103380.0,103370.0,1.4109887]
[1747148849688,0.03875097,103380.0,103370.0,1.43033657]
[1747148850231,0.23221198,103380.0,103370.0,1.43033657]
[1747148850689,0.03875097,103380.0,103370.0,1.43033657]
[1747148850919,0.03875078,103380.0,103370.0,1.43033657]